[Event "*** SCC Grand Prix: Titled Tuesday Blitz"]
[Site "Chess.com"]
[Date "2020.08.25"]
[Round "7"]
[White "PauloCesarCosta_sad"]
[Black "IMAghasiyevKamal"]
[Result "1/2-1/2"]
[WhiteElo "2273"]
[BlackElo "2425"]
[TimeControl "180+1"]
[EndTime "11:17:21 PDT"]
[Termination "Game drawn by agreement"]

1. Nf3 {[%clk 0:03:00.9]} 1... Nf6 {[%clk 0:02:29]} 2. c4 {[%clk 0:02:59.6]}
2... g6 {[%clk 0:02:26]} 3. g3 {[%clk 0:02:59.1]} 3... Bg7 {[%clk 0:02:24]} 4.
Bg2 {[%clk 0:03:00]} 4... O-O {[%clk 0:02:21.9]} 5. O-O {[%clk 0:02:57.9]} 5...
d6 {[%clk 0:02:12.6]} 6. d4 {[%clk 0:02:57.8]} 6... Nc6 {[%clk 0:02:03.5]} 7.
Nc3 {[%clk 0:02:56.4]} 7... Bf5 {[%clk 0:02:01.8]} 8. d5 {[%clk 0:02:37.5]} 8...
Na5 {[%clk 0:01:57.5]} 9. Nd4 {[%clk 0:02:31.8]} 9... Bd7 {[%clk 0:01:57.3]} 10.
b3 {[%clk 0:02:26.8]} 10... c5 {[%clk 0:01:56.5]} 11. dxc6 {[%clk 0:02:20.8]}
11... Nxc6 {[%clk 0:01:53.8]} 12. Bb2 {[%clk 0:02:20.8]} 12... a6 {[%clk
0:01:34.8]} 13. Qd2 {[%clk 0:02:12.7]} 13... Rc8 {[%clk 0:01:23.5]} 14. Rfd1
{[%clk 0:02:12.4]} 14... Nxd4 {[%clk 0:01:15.4]} 15. Qxd4 {[%clk 0:02:11.8]}
15... b5 {[%clk 0:01:11.9]} 16. cxb5 {[%clk 0:01:50.9]} 16... Ng4 {[%clk
0:00:47.5]} 17. Qd2 {[%clk 0:01:43.3]} 17... axb5 {[%clk 0:00:44.6]} 18. Rac1
{[%clk 0:01:43.5]} 18... Qb6 {[%clk 0:00:42.3]} 19. e3 {[%clk 0:01:37.4]}
1/2-1/2

[Event "*** SCC Grand Prix: Titled Tuesday Blitz"]
[Site "Chess.com"]
[Date "2020.08.25"]
[Round "7"]
[White "ClydeHillKid"]
[Black "TST2014"]
[Result "0-1"]
[WhiteElo "2343"]
[BlackElo "2492"]
[TimeControl "180+1"]
[EndTime "11:17:29 PDT"]
[Termination "TST2014 won by resignation"]

1. e4 {[%clk 0:03:00.9]} 1... c5 {[%clk 0:02:58.9]} 2. Nf3 {[%clk 0:03:00.4]}
2... Nc6 {[%clk 0:02:58.7]} 3. d4 {[%clk 0:03:00.1]} 3... cxd4 {[%clk
0:02:59.6]} 4. Nxd4 {[%clk 0:03:00.8]} 4... Nf6 {[%clk 0:02:57.3]} 5. Nc3 {[%clk
0:03:00.8]} 5... d6 {[%clk 0:02:57]} 6. Bc4 {[%clk 0:02:59.3]} 6... e5 {[%clk
0:02:56.9]} 7. Nf3 {[%clk 0:02:51.6]} 7... h6 {[%clk 0:02:56]} 8. h3 {[%clk
0:02:51]} 8... Be7 {[%clk 0:02:55.9]} 9. O-O {[%clk 0:02:50.3]} 9... Be6 {[%clk
0:02:55.8]} 10. Bxe6 {[%clk 0:02:49.7]} 10... fxe6 {[%clk 0:02:55.9]} 11. Re1
{[%clk 0:02:50]} 11... O-O {[%clk 0:02:55.4]} 12. a3 {[%clk 0:02:37.5]} 12...
Qe8 {[%clk 0:02:52.9]} 13. Nb5 {[%clk 0:02:33.2]} 13... Rd8 {[%clk 0:02:51.2]}
14. c4 {[%clk 0:02:30.8]} 14... Nh5 {[%clk 0:02:46.3]} 15. Nc3 {[%clk 0:02:27]}
15... Nf4 {[%clk 0:02:36.1]} 16. Bxf4 {[%clk 0:02:26.3]} 16... Rxf4 {[%clk
0:02:37]} 17. b4 {[%clk 0:02:22.6]} 17... Qf7 {[%clk 0:02:35.5]} 18. Re3 {[%clk
0:02:07.2]} 18... Nd4 {[%clk 0:02:33]} 19. Nxd4 {[%clk 0:02:05.4]} 19... exd4
{[%clk 0:02:33.9]} 20. Qxd4 {[%clk 0:02:05.3]} 20... Rxf2 {[%clk 0:02:29]} 21.
Re2 {[%clk 0:01:54.6]} 21... Rxe2 {[%clk 0:02:24.7]} 22. Nxe2 {[%clk 0:01:55.5]}
22... Bf6 {[%clk 0:02:24.8]} 23. Qd1 {[%clk 0:01:54.9]} 23... Bxa1 {[%clk
0:02:23.6]} 24. Qxa1 {[%clk 0:01:55.8]} 24... Rc8 {[%clk 0:02:19.2]} 25. Qd4
{[%clk 0:01:54.2]} 25... Qc7 {[%clk 0:02:15.8]} 26. Qxa7 {[%clk 0:01:46.8]}
26... Qxc4 {[%clk 0:02:14]} 27. Ng3 {[%clk 0:01:46.7]} 27... Qc1+ {[%clk
0:02:08]} 28. Kh2 {[%clk 0:01:46.7]} 28... Qf4 {[%clk 0:02:07.7]} 29. Qd4 {[%clk
0:00:47.5]} 29... h5 {[%clk 0:02:00.5]} 30. Kg1 {[%clk 0:00:38]} 30... Rc1+
{[%clk 0:01:56.3]} 31. Kh2 {[%clk 0:00:31.9]} 31... h4 {[%clk 0:01:56.6]} 0-1

[Event "*** SCC Grand Prix: Titled Tuesday Blitz"]
[Site "Chess.com"]
[Date "2020.08.25"]
[Round "7"]
[White "BocharovD"]
[Black "GM_dmitrij"]
[Result "1-0"]
[WhiteElo "2733"]
[BlackElo "2876"]
[TimeControl "180+1"]
[EndTime "11:17:39 PDT"]
[Termination "BocharovD won by resignation"]

1. c4 {[%clk 0:03:00.9]} 1... e5 {[%clk 0:02:59.4]} 2. d3 {[%clk 0:03:00.4]}
2... Nf6 {[%clk 0:02:57.9]} 3. Nf3 {[%clk 0:03:00]} 3... Bb4+ {[%clk 0:02:53]}
4. Nbd2 {[%clk 0:02:59]} 4... Qe7 {[%clk 0:02:48.8]} 5. a3 {[%clk 0:02:55.5]}
5... Bd6 {[%clk 0:02:48.9]} 6. b4 {[%clk 0:02:51.7]} 6... c5 {[%clk 0:02:47.5]}
7. b5 {[%clk 0:02:44.8]} 7... a6 {[%clk 0:02:45.7]} 8. e4 {[%clk 0:02:42.2]}
8... Bc7 {[%clk 0:02:41.5]} 9. Be2 {[%clk 0:02:36.4]} 9... axb5 {[%clk
0:02:37.7]} 10. cxb5 {[%clk 0:02:36.2]} 10... d5 {[%clk 0:02:38.1]} 11. O-O
{[%clk 0:02:30.7]} 11... O-O {[%clk 0:02:37.8]} 12. Qc2 {[%clk 0:02:30.2]} 12...
Nbd7 {[%clk 0:02:32.1]} 13. Re1 {[%clk 0:02:27.1]} 13... b6 {[%clk 0:02:12.1]}
14. exd5 {[%clk 0:02:22.3]} 14... Nxd5 {[%clk 0:02:10.8]} 15. Bb2 {[%clk
0:02:22.6]} 15... Bb7 {[%clk 0:02:10.1]} 16. Bf1 {[%clk 0:02:22.8]} 16... Qf6
{[%clk 0:02:02.9]} 17. g3 {[%clk 0:02:13.7]} 17... Rfe8 {[%clk 0:01:59.7]} 18.
Bg2 {[%clk 0:02:11.8]} 18... Qh6 {[%clk 0:01:31.7]} 19. Nc4 {[%clk 0:02:00.4]}
19... f6 {[%clk 0:01:28.9]} 20. Qb3 {[%clk 0:01:56.6]} 20... Kh8 {[%clk
0:01:28.5]} 21. Nh4 {[%clk 0:01:56.5]} 21... Rab8 {[%clk 0:01:14.6]} 22. Nf5
{[%clk 0:01:55.8]} 22... Qg6 {[%clk 0:00:45.9]} 23. Ncd6 {[%clk 0:01:46.6]}
23... Nf4 {[%clk 0:00:34.5]} 24. Nf7+ {[%clk 0:01:37.4]} 24... Qxf7 {[%clk
0:00:28.4]} 1-0

[Event "*** SCC Grand Prix: Titled Tuesday Blitz"]
[Site "Chess.com"]
[Date "2020.08.25"]
[Round "7"]
[White "Noam_Vitenberg"]
[Black "dretch"]
[Result "0-1"]
[WhiteElo "2511"]
[BlackElo "2757"]
[TimeControl "180+1"]
[EndTime "11:17:42 PDT"]
[Termination "dretch won by checkmate"]

1. Nf3 {[%clk 0:03:00.9]} 1... d5 {[%clk 0:02:59.8]} 2. c4 {[%clk 0:03:00.7]}
2... dxc4 {[%clk 0:02:56.6]} 3. e4 {[%clk 0:02:58.9]} 3... Nf6 {[%clk
0:02:55.5]} 4. Nc3 {[%clk 0:02:57.4]} 4... c5 {[%clk 0:02:48.1]} 5. Bxc4 {[%clk
0:02:54.8]} 5... e6 {[%clk 0:02:48.4]} 6. O-O {[%clk 0:02:48.1]} 6... Nc6 {[%clk
0:02:48.3]} 7. Bb5 {[%clk 0:02:41.1]} 7... Bd7 {[%clk 0:02:38.3]} 8. d4 {[%clk
0:02:40.6]} 8... cxd4 {[%clk 0:02:29.2]} 9. Nxd4 {[%clk 0:02:18.5]} 9... Nxd4
{[%clk 0:02:27.6]} 10. Qxd4 {[%clk 0:02:19.1]} 10... Bxb5 {[%clk 0:02:26.5]} 11.
Qxd8+ {[%clk 0:02:13]} 11... Rxd8 {[%clk 0:02:26.1]} 12. Nxb5 {[%clk 0:02:13.9]}
12... Bc5 {[%clk 0:02:09.3]} 13. Bg5 {[%clk 0:02:09]} 13... h6 {[%clk 0:01:57]}
14. Bxf6 {[%clk 0:02:08]} 14... gxf6 {[%clk 0:01:57.2]} 15. Rac1 {[%clk
0:02:08.6]} 15... Bb6 {[%clk 0:01:57]} 16. Rfd1 {[%clk 0:02:07.3]} 16... Ke7
{[%clk 0:01:56.2]} 17. Kf1 {[%clk 0:02:04.9]} 17... Rxd1+ {[%clk 0:01:54.2]} 18.
Rxd1 {[%clk 0:02:05.8]} 18... Rc8 {[%clk 0:01:53.5]} 19. Nc3 {[%clk 0:02:05.8]}
19... Ba5 {[%clk 0:01:46.1]} 20. Nb5 {[%clk 0:01:57.2]} 20... Rc2 {[%clk
0:01:31.6]} 21. Rb1 {[%clk 0:01:46.2]} 21... Bb6 {[%clk 0:01:30.7]} 22. f3
{[%clk 0:01:30]} 22... Rf2+ {[%clk 0:01:28]} 23. Ke1 {[%clk 0:01:28.5]} 23...
Rxg2 {[%clk 0:01:28.3]} 24. Rd1 {[%clk 0:01:28.9]} 24... Rxb2 {[%clk 0:01:22.6]}
25. a4 {[%clk 0:01:27.4]} 25... Rxh2 {[%clk 0:01:22.1]} 26. Rd3 {[%clk
0:01:26.9]} 26... h5 {[%clk 0:01:13.4]} 27. Nd6 {[%clk 0:01:25.3]} 27... h4
{[%clk 0:00:58.3]} 28. Nxb7 {[%clk 0:01:25.6]} 28... h3 {[%clk 0:00:57.1]} 29.
a5 {[%clk 0:01:26.1]} 29... Ra2 {[%clk 0:00:52.1]} 30. axb6 {[%clk 0:01:24.7]}
30... h2 {[%clk 0:00:51.7]} 31. Rd2 {[%clk 0:01:21]} 31... h1=Q+ {[%clk
0:00:51.2]} 32. Ke2 {[%clk 0:01:21.6]} 32... Qg2+ {[%clk 0:00:51.1]} 33. Ke3
{[%clk 0:01:22.1]} 33... Qxd2# {[%clk 0:00:51.2]} 0-1

[Event "*** SCC Grand Prix: Titled Tuesday Blitz"]
[Site "Chess.com"]
[Date "2020.08.25"]
[Round "7"]
[White "Reader777"]
[Black "ural58"]
[Result "1-0"]
[WhiteElo "2676"]
[BlackElo "2493"]
[TimeControl "180+1"]
[EndTime "11:17:42 PDT"]
[Termination "Reader777 won by resignation"]

1. d4 {[%clk 0:03:00.9]} 1... d5 {[%clk 0:02:56.6]} 2. c4 {[%clk 0:03:00.9]}
2... e5 {[%clk 0:02:56.3]} 3. dxe5 {[%clk 0:02:59.7]} 3... d4 {[%clk 0:02:56.3]}
4. Nf3 {[%clk 0:02:59.7]} 4... Nc6 {[%clk 0:02:56.1]} 5. g3 {[%clk 0:02:59.4]}
5... Nge7 {[%clk 0:02:55.6]} 6. Bg2 {[%clk 0:02:59]} 6... Ng6 {[%clk 0:02:56]}
7. Bg5 {[%clk 0:02:56.6]} 7... Qd7 {[%clk 0:02:55]} 8. e6 {[%clk 0:02:54.4]}
8... fxe6 {[%clk 0:02:51.9]} 9. O-O {[%clk 0:02:53.5]} 9... h6 {[%clk
0:02:51.9]} 10. Bc1 {[%clk 0:02:52.1]} 10... Be7 {[%clk 0:02:42.4]} 11. Nbd2
{[%clk 0:02:49.8]} 11... O-O {[%clk 0:02:41.6]} 12. b3 {[%clk 0:02:44.8]} 12...
e5 {[%clk 0:02:36.7]} 13. Bb2 {[%clk 0:02:44.3]} 13... Bf6 {[%clk 0:02:34.2]}
14. Ne4 {[%clk 0:02:41.9]} 14... Qf7 {[%clk 0:02:14.6]} 15. Nfd2 {[%clk
0:02:22.6]} 15... Bf5 {[%clk 0:02:10.1]} 16. Nxf6+ {[%clk 0:02:18.6]} 16... gxf6
{[%clk 0:02:08.3]} 17. e3 {[%clk 0:02:05.2]} 17... Rad8 {[%clk 0:02:07.4]} 18.
exd4 {[%clk 0:02:01.9]} 18... Nxd4 {[%clk 0:02:02.9]} 19. Bxd4 {[%clk
0:01:48.2]} 19... Rxd4 {[%clk 0:02:02.1]} 20. Qc1 {[%clk 0:01:46.2]} 20... c6
{[%clk 0:02:00.8]} 21. Nf3 {[%clk 0:01:45]} 21... Rd3 {[%clk 0:01:35.8]} 22.
Qxh6 {[%clk 0:01:40]} 22... Rfd8 {[%clk 0:01:34.4]} 23. Qh5 {[%clk 0:01:26.6]}
23... Be4 {[%clk 0:01:30.4]} 24. Ng5 {[%clk 0:01:23.9]} 24... fxg5 {[%clk
0:01:26]} 25. Bxe4 {[%clk 0:01:23.8]} 25... R3d6 {[%clk 0:01:20.4]} 26. Qxg5
{[%clk 0:01:23.5]} 26... Kf8 {[%clk 0:01:18.7]} 27. h4 {[%clk 0:01:19.7]} 27...
Ne7 {[%clk 0:01:18.4]} 28. Qxe5 {[%clk 0:01:18.2]} 28... Rf6 {[%clk 0:01:14.3]}
29. Rad1 {[%clk 0:01:15.6]} 29... Rxd1 {[%clk 0:01:13.7]} 30. Rxd1 {[%clk
0:01:16.2]} 1-0

[Event "*** SCC Grand Prix: Titled Tuesday Blitz"]
[Site "Chess.com"]
[Date "2020.08.25"]
[Round "7"]
[White "RaunakSadhwani2005"]
[Black "azikom"]
[Result "1-0"]
[WhiteElo "2864"]
[BlackElo "2636"]
[TimeControl "180+1"]
[EndTime "11:17:47 PDT"]
[Termination "RaunakSadhwani2005 won by checkmate"]

1. d4 {[%clk 0:02:57.7]} 1... e6 {[%clk 0:02:59.3]} 2. Bf4 {[%clk 0:02:57.2]}
2... d5 {[%clk 0:02:59.1]} 3. e3 {[%clk 0:02:57.1]} 3... Bd6 {[%clk 0:02:59.5]}
4. Nf3 {[%clk 0:02:57.1]} 4... Bxf4 {[%clk 0:02:58.7]} 5. exf4 {[%clk 0:02:58]}
5... c5 {[%clk 0:02:59.2]} 6. dxc5 {[%clk 0:02:56.2]} 6... Qa5+ {[%clk
0:02:58.4]} 7. c3 {[%clk 0:02:56.6]} 7... Qxc5 {[%clk 0:02:58]} 8. Nbd2 {[%clk
0:02:56.5]} 8... Nf6 {[%clk 0:02:56.4]} 9. Bd3 {[%clk 0:02:56.4]} 9... Qc7
{[%clk 0:02:52.6]} 10. g3 {[%clk 0:02:56.5]} 10... O-O {[%clk 0:02:50.1]} 11.
O-O {[%clk 0:02:56.5]} 11... b6 {[%clk 0:02:50.4]} 12. Re1 {[%clk 0:02:55.1]}
12... Ba6 {[%clk 0:02:49.2]} 13. Bc2 {[%clk 0:02:52.5]} 13... Nbd7 {[%clk
0:02:48.2]} 14. Nd4 {[%clk 0:02:52.3]} 14... Nc5 {[%clk 0:02:46.7]} 15. Qf3
{[%clk 0:02:47.1]} 15... h6 {[%clk 0:02:42.8]} 16. Re3 {[%clk 0:02:46.7]} 16...
Bc4 {[%clk 0:02:31.6]} 17. a3 {[%clk 0:02:39.2]} 17... Rfe8 {[%clk 0:02:06.6]}
18. Rae1 {[%clk 0:02:36.9]} 18... a5 {[%clk 0:02:06.9]} 19. g4 {[%clk
0:02:21.9]} 19... Ba6 {[%clk 0:01:56.8]} 20. g5 {[%clk 0:02:19.1]} 20... hxg5
{[%clk 0:01:56.6]} 21. fxg5 {[%clk 0:02:20]} 21... Nfe4 {[%clk 0:01:57]} 22.
Nxe4 {[%clk 0:02:05.2]} 22... dxe4 {[%clk 0:01:56.7]} 23. Bxe4 {[%clk
0:02:00.2]} 23... Nxe4 {[%clk 0:01:56.1]} 24. Qxe4 {[%clk 0:02:01.1]} 24... Bb7
{[%clk 0:01:55.7]} 25. Qh4 {[%clk 0:01:59.9]} 25... Qd6 {[%clk 0:00:54.5]} 26.
Rh3 {[%clk 0:01:55.8]} 26... Kf8 {[%clk 0:00:29.9]} 27. Nf5 {[%clk 0:01:52.9]}
27... Qd5 {[%clk 0:00:16.7]} 28. Qh8# {[%clk 0:01:51.8]} 1-0

[Event "*** SCC Grand Prix: Titled Tuesday Blitz"]
[Site "Chess.com"]
[Date "2020.08.25"]
[Round "7"]
[White "Blagorod"]
[Black "Alembong"]
[Result "1/2-1/2"]
[WhiteElo "2179"]
[BlackElo "2445"]
[TimeControl "180+1"]
[EndTime "11:17:49 PDT"]
[Termination "Game drawn by agreement"]

1. e4 {[%clk 0:03:00.9]} 1... e5 {[%clk 0:02:58.8]} 2. Nf3 {[%clk 0:03:00.5]}
2... Nf6 {[%clk 0:02:58.8]} 3. Nxe5 {[%clk 0:03:00.4]} 3... d6 {[%clk
0:02:58.2]} 4. Nf3 {[%clk 0:03:00]} 4... Nxe4 {[%clk 0:02:58.1]} 5. d4 {[%clk
0:03:00.6]} 5... d5 {[%clk 0:02:57.9]} 6. Bd3 {[%clk 0:03:01.2]} 6... Nc6 {[%clk
0:02:57.6]} 7. O-O {[%clk 0:03:00.2]} 7... Be7 {[%clk 0:02:58.2]} 8. c4 {[%clk
0:02:58.1]} 8... Nb4 {[%clk 0:02:53.9]} 9. Be2 {[%clk 0:02:58]} 9... Bf5 {[%clk
0:02:50.8]} 10. a3 {[%clk 0:02:56.6]} 10... Nc6 {[%clk 0:02:50.5]} 11. Nc3
{[%clk 0:02:54.2]} 11... Nxc3 {[%clk 0:02:49.4]} 12. bxc3 {[%clk 0:02:53.5]}
12... dxc4 {[%clk 0:02:46.5]} 13. Bxc4 {[%clk 0:02:52.9]} 13... O-O {[%clk
0:02:47.2]} 14. Bf4 {[%clk 0:02:51.9]} 14... Bd6 {[%clk 0:02:46.5]} 15. Qd2
{[%clk 0:02:41.4]} 15... Bg4 {[%clk 0:02:35.7]} 16. Ng5 {[%clk 0:02:18.8]} 16...
Qf6 {[%clk 0:02:15.8]} 17. Bxd6 {[%clk 0:01:52]} 17... cxd6 {[%clk 0:02:14.6]}
18. Ne4 {[%clk 0:01:46.5]} 18... Qg6 {[%clk 0:02:12.9]} 19. Ng3 {[%clk
0:01:38.1]} 19... Rfe8 {[%clk 0:01:25.9]} 20. h3 {[%clk 0:01:36.4]} 20... Bd7
{[%clk 0:01:24]} 21. Rfe1 {[%clk 0:01:24.9]} 21... Rxe1+ {[%clk 0:01:13.5]} 22.
Rxe1 {[%clk 0:01:23.4]} 22... Rc8 {[%clk 0:01:02.5]} 23. Ba2 {[%clk 0:01:09.4]}
23... Be8 {[%clk 0:00:45]} 1/2-1/2

[Event "*** SCC Grand Prix: Titled Tuesday Blitz"]
[Site "Chess.com"]
[Date "2020.08.25"]
[Round "7"]
[White "SGchess01"]
[Black "MomchilPetkov"]
[Result "1-0"]
[WhiteElo "2734"]
[BlackElo "2551"]
[TimeControl "180+1"]
[EndTime "11:17:54 PDT"]
[Termination "SGchess01 won by resignation"]

1. d4 {[%clk 0:02:48.1]} 1... Nf6 {[%clk 0:02:59.2]} 2. c4 {[%clk 0:02:49]} 2...
e6 {[%clk 0:02:58.6]} 3. Nf3 {[%clk 0:02:49.5]} 3... d5 {[%clk 0:02:57.4]} 4.
Nc3 {[%clk 0:02:50.1]} 4... Bb4 {[%clk 0:02:57.8]} 5. cxd5 {[%clk 0:02:48.2]}
5... exd5 {[%clk 0:02:57.4]} 6. Bf4 {[%clk 0:02:48.8]} 6... Nc6 {[%clk
0:02:55.2]} 7. Rc1 {[%clk 0:02:44.6]} 7... Ne4 {[%clk 0:02:55]} 8. Nd2 {[%clk
0:02:44.4]} 8... g5 {[%clk 0:02:40.5]} 9. Be3 {[%clk 0:02:44.1]} 9... Nxc3
{[%clk 0:02:27.2]} 10. bxc3 {[%clk 0:02:43.5]} 10... Ba3 {[%clk 0:02:27.8]} 11.
Rb1 {[%clk 0:02:44]} 11... f5 {[%clk 0:02:23.2]} 12. Nf3 {[%clk 0:02:30]} 12...
f4 {[%clk 0:02:19.8]} 13. Bd2 {[%clk 0:02:28.2]} 13... Rf8 {[%clk 0:02:03.1]}
14. g3 {[%clk 0:02:26.2]} 14... g4 {[%clk 0:01:46.7]} 15. Nh4 {[%clk 0:02:25.3]}
15... Bd6 {[%clk 0:01:44.3]} 16. Ng2 {[%clk 0:02:24.5]} 16... f3 {[%clk
0:01:37.9]} 17. exf3 {[%clk 0:02:24]} 17... gxf3 {[%clk 0:01:38.8]} 18. Ne3
{[%clk 0:02:23.8]} 18... Ne7 {[%clk 0:01:35.7]} 19. Bd3 {[%clk 0:02:22.4]} 19...
c6 {[%clk 0:01:23.1]} 20. O-O {[%clk 0:02:17.9]} 20... Qc7 {[%clk 0:01:20.6]}
21. c4 {[%clk 0:02:16.4]} 21... Bh3 {[%clk 0:01:18.6]} 22. c5 {[%clk 0:02:14.8]}
22... Bf4 {[%clk 0:01:17.6]} 23. Re1 {[%clk 0:02:13.7]} 23... O-O-O {[%clk
0:01:14.9]} 24. Qxf3 {[%clk 0:02:08.9]} 24... Bxe3 {[%clk 0:01:08]} 25. Qxe3
{[%clk 0:02:08.2]} 25... Ng6 {[%clk 0:01:00.2]} 26. Qh6 {[%clk 0:02:03]} 26...
Qd7 {[%clk 0:00:58.1]} 27. a4 {[%clk 0:01:45]} 27... Qg4 {[%clk 0:00:45.4]} 28.
a5 {[%clk 0:01:29.8]} 28... Qf3 {[%clk 0:00:41.5]} 29. Qxh3+ {[%clk 0:01:29.1]}
29... Kb8 {[%clk 0:00:38.5]} 30. Be3 {[%clk 0:01:27]} 1-0

[Event "*** SCC Grand Prix: Titled Tuesday Blitz"]
[Site "Chess.com"]
[Date "2020.08.25"]
[Round "7"]
[White "Kaliopa"]
[Black "gagtemp"]
[Result "1-0"]
[WhiteElo "2190"]
[BlackElo "1955"]
[TimeControl "180+1"]
[EndTime "11:18:08 PDT"]
[Termination "Kaliopa won by checkmate"]

1. d4 {[%clk 0:03:00.9]} 1... d5 {[%clk 0:02:58.8]} 2. c4 {[%clk 0:03:00.8]}
2... e6 {[%clk 0:02:57.8]} 3. Nc3 {[%clk 0:03:00.2]} 3... c5 {[%clk 0:02:55.9]}
4. Nf3 {[%clk 0:02:55.7]} 4... Nc6 {[%clk 0:02:53.3]} 5. e3 {[%clk 0:02:55]}
5... Nf6 {[%clk 0:02:52.4]} 6. a3 {[%clk 0:02:54]} 6... cxd4 {[%clk 0:02:48.4]}
7. exd4 {[%clk 0:02:53.5]} 7... Be7 {[%clk 0:02:43.1]} 8. Bd3 {[%clk 0:02:35.1]}
8... O-O {[%clk 0:02:36.6]} 9. O-O {[%clk 0:02:34]} 9... dxc4 {[%clk 0:02:36.7]}
10. Bxc4 {[%clk 0:02:32]} 10... a6 {[%clk 0:02:35.7]} 11. Qd3 {[%clk 0:02:20.2]}
11... b5 {[%clk 0:02:31.6]} 12. Bb3 {[%clk 0:02:18.4]} 12... Bb7 {[%clk
0:02:28.2]} 13. Bg5 {[%clk 0:02:11.8]} 13... g6 {[%clk 0:02:15]} 14. Rad1 {[%clk
0:02:06.5]} 14... Re8 {[%clk 0:02:13.1]} 15. Rfe1 {[%clk 0:01:59.2]} 15... Na5
{[%clk 0:02:10.7]} 16. Ba2 {[%clk 0:01:55.5]} 16... Nd5 {[%clk 0:01:52.7]} 17.
Bd2 {[%clk 0:01:48.7]} 17... Nxc3 {[%clk 0:01:43.7]} 18. Bxc3 {[%clk 0:01:46.3]}
18... Rc8 {[%clk 0:01:38]} 19. d5 {[%clk 0:01:39.9]} 19... Rxc3 {[%clk
0:01:10.3]} 20. Qxc3 {[%clk 0:01:33.9]} 20... Bxd5 {[%clk 0:01:07.4]} 21. Bxd5
{[%clk 0:01:32.5]} 21... exd5 {[%clk 0:01:07.1]} 22. Nd4 {[%clk 0:01:26.2]}
22... Nc4 {[%clk 0:01:03.5]} 23. Nc6 {[%clk 0:01:21.1]} 23... Qd7 {[%clk
0:00:59.7]} 24. Nxe7+ {[%clk 0:01:14.7]} 24... Rxe7 {[%clk 0:00:59.1]} 25. Qf6
{[%clk 0:01:04.1]} 25... Rxe1+ {[%clk 0:00:56.6]} 26. Rxe1 {[%clk 0:01:05]}
26... Qf5 {[%clk 0:00:42.2]} 27. Re8# {[%clk 0:01:03.1]} 1-0

[Event "*** SCC Grand Prix: Titled Tuesday Blitz"]
[Site "Chess.com"]
[Date "2020.08.25"]
[Round "7"]
[White "topotun"]
[Black "StellarChessPro"]
[Result "1-0"]
[WhiteElo "2713"]
[BlackElo "2497"]
[TimeControl "180+1"]
[EndTime "11:18:11 PDT"]
[Termination "topotun won by resignation"]

1. e4 {[%clk 0:03:00.9]} 1... g6 {[%clk 0:02:59.9]} 2. d4 {[%clk 0:03:01]} 2...
Bg7 {[%clk 0:03:00.5]} 3. Nc3 {[%clk 0:03:01.6]} 3... d6 {[%clk 0:03:01.1]} 4.
g3 {[%clk 0:03:01.6]} 4... Nf6 {[%clk 0:03:01.7]} 5. Bg2 {[%clk 0:03:01.8]} 5...
O-O {[%clk 0:03:02.4]} 6. Nge2 {[%clk 0:03:02.2]} 6... e5 {[%clk 0:03:03]} 7. h3
{[%clk 0:03:02.4]} 7... Nc6 {[%clk 0:03:03.1]} 8. Be3 {[%clk 0:03:02.4]} 8...
exd4 {[%clk 0:03:01.9]} 9. Nxd4 {[%clk 0:03:03.3]} 9... Nxd4 {[%clk 0:03:02.8]}
10. Bxd4 {[%clk 0:03:03.6]} 10... Nd7 {[%clk 0:03:03.4]} 11. O-O {[%clk
0:02:48.3]} 11... Re8 {[%clk 0:03:01.6]} 12. f4 {[%clk 0:02:29.5]} 12... a6
{[%clk 0:02:58]} 13. a4 {[%clk 0:02:28.3]} 13... Bxd4+ {[%clk 0:02:57.4]} 14.
Qxd4 {[%clk 0:02:27.9]} 14... Qf6 {[%clk 0:02:58.3]} 15. Qc4 {[%clk 0:01:55.1]}
15... Qd8 {[%clk 0:02:34.2]} 16. a5 {[%clk 0:01:46.8]} 16... Nf6 {[%clk
0:02:28.8]} 17. Rad1 {[%clk 0:01:43.4]} 17... Qe7 {[%clk 0:02:24.7]} 18. Kh2
{[%clk 0:01:20.6]} 18... Rb8 {[%clk 0:02:21.2]} 19. Rfe1 {[%clk 0:01:16]} 19...
Be6 {[%clk 0:02:18.5]} 20. Qd4 {[%clk 0:01:12.1]} 20... Red8 {[%clk 0:02:00.9]}
21. Nd5 {[%clk 0:00:55.7]} 21... Bxd5 {[%clk 0:01:04.5]} 22. exd5 {[%clk
0:00:54.6]} 22... c5 {[%clk 0:00:53.7]} 23. dxc6 {[%clk 0:00:50.3]} 23... Qf8
{[%clk 0:00:51.9]} 24. c7 {[%clk 0:00:45]} 1-0

[Event "*** SCC Grand Prix: Titled Tuesday Blitz"]
[Site "Chess.com"]
[Date "2020.08.25"]
[Round "7"]
[White "frequentblunders"]
[Black "DrMamaliga"]
[Result "0-1"]
[WhiteElo "2029"]
[BlackElo "2218"]
[TimeControl "180+1"]
[EndTime "11:18:18 PDT"]
[Termination "DrMamaliga won by resignation"]

1. e4 {[%clk 0:02:59.4]} 1... e5 {[%clk 0:02:59.5]} 2. Nc3 {[%clk 0:03:00.3]}
2... Nf6 {[%clk 0:02:59]} 3. Nf3 {[%clk 0:03:01.2]} 3... Nc6 {[%clk 0:02:58.8]}
4. d4 {[%clk 0:03:01.6]} 4... exd4 {[%clk 0:02:57.2]} 5. Nd5 {[%clk 0:03:02]}
5... Bc5 {[%clk 0:02:34.9]} 6. Bg5 {[%clk 0:02:58.9]} 6... Be7 {[%clk
0:02:28.7]} 7. Nxe7 {[%clk 0:02:53.6]} 7... Qxe7 {[%clk 0:02:29.6]} 8. Bd3
{[%clk 0:02:16.7]} 8... h6 {[%clk 0:02:18.7]} 9. Bxf6 {[%clk 0:02:11.9]} 9...
Qxf6 {[%clk 0:02:19.6]} 10. O-O {[%clk 0:02:10.4]} 10... O-O {[%clk 0:02:18.9]}
11. Re1 {[%clk 0:02:05.8]} 11... d6 {[%clk 0:02:17.6]} 12. Bb5 {[%clk
0:02:04.8]} 12... Bg4 {[%clk 0:02:13.8]} 13. Bxc6 {[%clk 0:02:04.7]} 13... Bxf3
{[%clk 0:02:08.6]} 14. Qxf3 {[%clk 0:01:49.2]} 14... Qxf3 {[%clk 0:02:08]} 15.
gxf3 {[%clk 0:01:49.9]} 15... bxc6 {[%clk 0:02:08.6]} 16. e5 {[%clk 0:01:49]}
16... Rfe8 {[%clk 0:02:06.2]} 17. exd6 {[%clk 0:01:40.9]} 17... cxd6 {[%clk
0:02:05.9]} 18. Rxe8+ {[%clk 0:01:33.1]} 18... Rxe8 {[%clk 0:02:06.8]} 19. Rd1
{[%clk 0:01:31.8]} 19... c5 {[%clk 0:02:03.7]} 20. c3 {[%clk 0:01:29.7]} 20...
Re2 {[%clk 0:01:52.1]} 21. cxd4 {[%clk 0:01:28.3]} 21... Rxb2 {[%clk 0:01:47.5]}
22. dxc5 {[%clk 0:01:28.3]} 22... dxc5 {[%clk 0:01:48.4]} 23. Rc1 {[%clk
0:01:22.1]} 23... Rb5 {[%clk 0:01:32.2]} 24. a4 {[%clk 0:01:13.2]} 24... Ra5
{[%clk 0:01:31.6]} 25. Rc4 {[%clk 0:01:12.9]} 25... Kf8 {[%clk 0:01:31.5]} 26.
Kf1 {[%clk 0:01:10.1]} 26... Ke7 {[%clk 0:01:29.8]} 27. Ke2 {[%clk 0:01:10.2]}
27... Kd6 {[%clk 0:01:29.4]} 28. Kd3 {[%clk 0:01:07.4]} 28... Kd5 {[%clk
0:01:28.8]} 29. h4 {[%clk 0:00:57.5]} 29... Ra6 {[%clk 0:01:28.6]} 30. Rf4
{[%clk 0:00:42.3]} 30... Rf6 {[%clk 0:01:26]} 31. Rxf6 {[%clk 0:00:35]} 31...
gxf6 {[%clk 0:01:26.9]} 32. Kc3 {[%clk 0:00:34.5]} 32... c4 {[%clk 0:01:21.9]}
33. Kb4 {[%clk 0:00:31.1]} 33... Kd4 {[%clk 0:01:21.5]} 34. Kb5 {[%clk 0:00:31]}
34... c3 {[%clk 0:01:21.6]} 0-1